bitfinex-derivatives/quotes_BTCF0:USTF0_20240820
["timestamp","ask_amount","ask_price","bid_price","bid_amount"]
[1724125946197,0.15930782,60609.0,60608.0,0.14043747]
[1724125946198,0.093453,60609.0,60608.0,0.14043747]
[1724125946490,0.093453,60609.0,60608.0,0.452]
[1724125946890,0.093453,60609.0,60608.0,0.50123867]
[1724125946891,0.15930782,60609.0,60608.0,0.50123867]
[1724125947090,0.15930782,60609.0,60608.0,0.14043867]
[1724125947292,0.15930782,60609.0,60608.0,0.0912]
[1724125948390,0.093453,60609.0,60608.0,0.0912]
[1724125950399,0.093453,60609.0,60608.0,0.0915]
[1724125956209,0.093453,60609.0,60608.0,0.14075314]
[1724125958093,0.093453,60609.0,60608.0,0.0915]
[1724125958303,0.093453,60609.0,60608.0,0.14075314]
[1724125958504,0.093453,60609.0,60608.0,0.16653134]
[1724125960006,0.093453,60609.0,60608.0,0.07533134]
[1724125960305,0.25832468,60609.0,60608.0,0.1172782]
[1724125960509,0.175906,60609.0,60608.0,0.1172782]
[1724125961312,0.175906,60609.0,60608.0,0.0915]
[1724125961512,0.175906,60609.0,60608.0,0.1172802]
[1724125962012,0.175906,60609.0,60608.0,0.11728022]
[1724125963014,0.093453,60609.0,60608.0,0.11728022]
[1724125967016,0.093453,60609.0,60608.0,0.14305854]
[1724125967716,0.093453,60609.0,60608.0,0.11728022]
[1724125969916,0.093453,60609.0,60608.0,0.14305842]
[1724125970113,0.093453,60609.0,60608.0,0.2087335]
[1724125970415,0.093453,60609.0,60608.0,0.14305842]
[1724125970812,0.093453,60609.0,60608.0,0.15171061]
[1724125973127,0.093453,60609.0,60608.0,0.15171036]
[1724125973522,0.093453,60609.0,60608.0,0.15170807]
[1724125978223,0.093453,60609.0,60608.0,0.21738315]
[1724125979320,0.093453,60609.0,60608.0,0.15170807]
[1724125980222,0.093453,60609.0,60608.0,0.21749368]
[1724125983231,0.093453,60609.0,60608.0,0.23518728]
[1724125983728,0.093453,60609.0,60608.0,0.23518681]
[1724125983932,0.093453,60609.0,60608.0,0.21749462]
[1724125984130,0.093453,60609.0,60608.0,0.19171621]
[1724125984323,0.093453,60609.0,60608.0,0.21749462]
[1724125984518,0.093453,60609.0,60608.0,0.15170901]
[1724125985425,0.093453,60609.0,60608.0,0.21749462]
[1724125985633,0.093453,60609.0,60608.0,0.15170901]
[1724125988227,0.093453,60609.0,60608.0,0.15140901]
[1724125988425,0.093453,60609.0,60608.0,0.21717727]
[1724125988626,0.093453,60609.0,60608.0,0.23486689]
[1724125988828,0.093453,60609.0,60608.0,0.21717247]
[1724125992032,0.093453,60609.0,60608.0,0.1913933]
[1724125992228,0.093453,60609.0,60608.0,0.15140749]
[1724125992427,0.093453,60609.0,60608.0,0.2171882]
[1724125993424,0.093453,60609.0,60608.0,0.15140749]
[1724125995437,0.17585941,60609.0,60608.0,0.15140749]
[1724125995938,0.17585941,60609.0,60608.0,0.23386149]
[1724125997626,0.17585941,60609.0,60608.0,0.06020749]
[1724125997840,0.454253,60609.0,60608.0,0.07512131]
[1724125998136,0.454253,60609.0,60608.0,0.02577765]
[1724125998531,0.082457,60606.0,60605.0,0.14054366]
[1724125998730,0.082457,60606.0,60605.0,0.19210354]
[1724125999143,0.082457,60606.0,60605.0,0.1663236]
[1724125999331,0.16490865,60606.0,60605.0,0.1663236]
[1724125999842,0.16490865,60606.0,60605.0,0.11697994]
[1724125999843,0.16890865,60606.0,60605.0,0.11697994]
[1724126000342,0.086457,60606.0,60605.0,0.11697994]
[1724126000933,0.086457,60606.0,60605.0,0.02577994]
[1724126001133,0.086457,60606.0,60605.0,0.11697994]
[1724126001339,0.09535466,60606.0,60605.0,0.11697994]
[1724126002543,0.09535466,60606.0,60605.0,0.11727994]
[1724126004538,0.09535466,60606.0,60605.0,0.16659137]
[1724126005649,0.17781166,60606.0,60605.0,0.16658938]
[1724126005947,0.17781166,60606.0,60605.0,0.0915]
[1724126009138,0.53861166,60606.0,60605.0,0.0915]
[1724126010442,0.62098523,60606.0,60605.0,0.0915]
[1724126010947,0.53861166,60606.0,60605.0,0.0915]
[1724126017655,0.17781166,60606.0,60605.0,0.0915]
[1724126017853,0.53861166,60606.0,60605.0,0.0915]
[1724126019454,0.45615466,60606.0,60605.0,0.0915]
[1724126019659,0.53852823,60606.0,60605.0,0.0915]
[1724126020151,0.45615466,60606.0,60605.0,0.0915]
[1724126020354,0.53852823,60606.0,60605.0,0.0915]
[1724126020552,0.45615466,60606.0,60605.0,0.0915]
[1724126020747,0.53852823,60606.0,60605.0,0.0915]
[1724126022853,0.45615466,60606.0,60605.0,0.0915]
[1724126025450,0.53852823,60606.0,60605.0,0.0915]
[1724126025650,0.17772823,60606.0,60605.0,0.0915]
[1724126025847,0.53852823,60606.0,60605.0,0.0915]
[1724126026047,0.17772823,60606.0,60605.0,0.0915]
[1724126026248,0.53852823,60606.0,60605.0,0.0915]
[1724126027563,0.45615466,60606.0,60605.0,0.0915]
[1724126028054,0.09535466,60606.0,60605.0,0.0915]
[1724126028256,0.09535466,60606.0,60605.0,0.14082118]
[1724126028460,0.09535466,60606.0,60605.0,0.0915]
[1724126029154,0.01289766,60606.0,60605.0,0.0915]
[1724126029462,0.0788349,60606.0,60605.0,0.19973725]
[1724126029654,0.01289766,60606.0,60605.0,0.22551568]
[1724126031054,0.004,60606.0,60605.0,0.22551568]
[1724126032449,0.004,60606.0,60605.0,0.24320144]
[1724126032656,0.004,60606.0,60605.0,0.21742159]
[1724126032855,0.004,60606.0,60605.0,0.22551406]
[1724126033254,0.004,60606.0,60605.0,0.22551407]
[1724126033655,0.004,60606.0,60605.0,0.73819901]
[1724126033953,0.0002475,60614.0,60613.0,0.082447]
[1724126034262,0.0002475,60614.0,60613.0,0.58600307]
[1724126035058,0.0002475,60614.0,60613.0,0.73940307]
[1724126035265,0.0002475,60614.0,60613.0,0.71362504]
[1724126035458,0.0132475,60614.0,60613.0,0.7393996]
[1724126035764,0.0232475,60614.0,60613.0,0.7393996]
[1724126036560,0.0232475,60614.0,60613.0,0.687847]
[1724126036769,0.0232475,60614.0,60613.0,0.71362085]
[1724126037251,0.0232475,60614.0,60613.0,0.79694245]
[1724126037456,0.0232475,60614.0,60613.0,0.7570733]
[1724126037855,0.0232475,60614.0,60613.0,0.73129971]
[1724126038261,0.1056935,60614.0,60613.0,0.71362085]
[1724126039067,0.1056935,60614.0,60613.0,0.7225673]
[1724126040570,0.1056935,60614.0,60613.0,0.71447348]
[1724126040772,0.1056935,60614.0,60613.0,0.74024823]
[1724126042363,0.1056935,60614.0,60613.0,0.7225682]
[1724126043364,0.1056935,60614.0,60613.0,0.69679345]
[1724126043671,0.1056935,60614.0,60613.0,0.72256831]
[1724126045866,0.1056935,60614.0,60613.0,0.36176831]
[1724126046262,0.1056935,60614.0,60613.0,0.72256831]
[1724126046664,0.1056935,60614.0,60613.0,0.69679345]
[1724126048767,0.17146081,60614.0,60613.0,0.69679345]
[1724126048968,0.1056935,60614.0,60613.0,0.69679345]
[1724126049478,0.17146329,60614.0,60613.0,0.72256754]
[1724126051371,0.1056935,60614.0,60613.0,0.69679345]
[1724126051972,0.0232475,60614.0,60613.0,0.69679345]
[1724126052168,0.08902948,60614.0,60613.0,0.69679345]
[1724126052475,0.0232475,60614.0,60613.0,0.69679345]
[1724126055372,0.0232475,60614.0,60613.0,0.69709345]
[1724126057682,0.0232475,60614.0,60613.0,0.76273619]
[1724126058078,0.0232475,60614.0,60613.0,0.69709345]
[1724126059283,0.1056935,60614.0,60613.0,0.69709345]
[1724126060574,0.17149556,60614.0,60613.0,0.33629345]
[1724126061386,0.1056935,60614.0,60613.0,0.33629345]
[1724126061975,0.1056935,60614.0,60613.0,0.00924645]
[1724126062171,0.5489395,60614.0,60613.0,0.0003]
[1724126062483,4.40137106,60614.0,60613.0,0.0915]
[1724126062683,4.40134777,60614.0,60613.0,0.0915]
[1724126062879,4.04054777,60614.0,60613.0,0.0915]
[1724126063074,4.40134777,60614.0,60613.0,0.0915]
[1724126063275,4.3189395,60614.0,60613.0,0.14078208]
[1724126063480,4.3189395,60614.0,60613.0,0.0915]
[1724126065775,3.9581395,60614.0,60613.0,0.0003]
[1724126065981,4.0405363,60614.0,60613.0,0.0003]
[1724126066678,4.04053268,60614.0,60613.0,0.0003]
[1724126067186,3.9581395,60614.0,60613.0,0.0003]
[1724126067378,0.27052726,60614.0,60613.0,0.0003]
[1724126068280,0.1881395,60614.0,60613.0,0.0003]
[1724126068481,0.27052726,60614.0,60613.0,0.0003]
[1724126068780,0.1881395,60614.0,60613.0,0.0003]
[1724126069493,0.2384395,60614.0,60613.0,0.0003]
[1724126069785,0.32081178,60614.0,60613.0,0.0003]
[1724126069986,0.082454,60608.0,60607.0,0.04928208]
[1724126070289,0.082455,60607.0,60606.0,0.04929776]
[1724126070590,0.08237158,60611.0,60605.0,0.04929776]
[1724126070591,0.082457,60606.0,60605.0,0.04929776]
[1724126071989,0.083457,60606.0,60605.0,0.07507679]
[1724126072191,0.083457,60606.0,60605.0,0.04929776]
[1724126072383,0.083457,60606.0,60605.0,0.07507679]
[1724126072582,0.09223525,60606.0,60605.0,0.04929776]
[1724126072788,0.001,60606.0,60605.0,0.15750918]
[1724126072989,0.001,60606.0,60605.0,0.10823672]
[1724126073187,0.001,60606.0,60605.0,0.26333672]
[1724126073483,0.004,60606.0,60605.0,0.26333672]
[1724126074580,0.004,60606.0,60605.0,0.31262652]
[1724126075095,0.004,60606.0,60605.0,0.2868478]
[1724126075384,0.004,60606.0,60605.0,0.31262727]
[1724126075793,0.004,60606.0,60605.0,0.26333747]
[1724126075982,0.004,60606.0,60605.0,0.31261981]
[1724126076379,0.004,60606.0,60605.0,0.28684034]
[1724126076585,0.004,60606.0,60605.0,0.31261915]
[1724126079595,0.004,60606.0,60605.0,0.26333681]
[1724126079987,0.004,60606.0,60605.0,0.237558]
[1724126081393,0.004,60606.0,60605.0,0.082458]
[1724126082897,0.004,60606.0,60605.0,0.10823719]
[1724126083489,0.004,60606.0,60605.0,0.15751953]
[1724126083694,0.004,60606.0,60605.0,0.10823719]
[1724126084388,0.004,60606.0,60605.0,0.082458]
[1724126085203,0.086457,60606.0,60605.0,0.082458]
[1724126085388,0.15231541,60606.0,60605.0,0.082458]
[1724126086398,0.082458,60605.0,60604.0,0.0912]
[1724126086603,0.082458,60605.0,60604.0,0.11697954]
[1724126087493,0.082458,60605.0,60604.0,0.16626188]
[1724126087894,0.084458,60605.0,60604.0,0.16626188]
[1724126088296,0.084458,60605.0,60604.0,0.14048234]
[1724126088497,0.084458,60605.0,60604.0,0.16626184]
[1724126089090,0.084458,60605.0,60604.0,0.14048234]
[1724126089493,0.15034578,60605.0,60604.0,0.0912]
[1724126090594,0.084458,60605.0,60604.0,0.0912]
[1724126091397,0.084458,60605.0,60604.0,0.15684274]
[1724126093398,0.15034578,60605.0,60604.0,0.15684274]
[1724126094302,0.15034578,60605.0,60604.0,0.18262179]
[1724126094705,0.084458,60605.0,60604.0,0.18262179]
[1724126095402,0.084458,60605.0,60604.0,0.0912]
[1724126095601,0.084458,60605.0,60604.0,0.11697905]
[1724126096101,0.084458,60605.0,60604.0,0.18279382]
[1724126096305,0.084458,60605.0,60604.0,0.15701477]
[1724126096614,0.084458,60605.0,60604.0,0.18279417]
[1724126097601,0.084458,60605.0,60604.0,0.15701477]
[1724126097804,0.084458,60605.0,60604.0,0.18279428]
[1724126098108,0.084458,60605.0,60604.0,0.11697951]
[1724126098704,0.084458,60605.0,60604.0,0.18282661]
[1724126104827,0.084458,60605.0,60604.0,0.1570471]
[1724126105018,0.084458,60605.0,60604.0,0.18282661]
[1724126105713,0.084458,60605.0,60604.0,0.14275902]
[1724126107222,0.084458,60605.0,60604.0,0.16046208]
[1724126107615,0.084458,60605.0,60604.0,0.06926208]
[1724126108226,0.082459,60604.0,60603.0,0.19646]
[1724126108526,0.082459,60604.0,60603.0,0.26572204]
[1724126109427,0.082459,60604.0,60603.0,0.26772204]
[1724126110020,0.082159,60604.0,60603.0,0.26772204]
[1724126110217,0.083159,60604.0,60603.0,0.26772204]
[1724126112134,0.083159,60604.0,60603.0,0.24194255]
[1724126112333,0.083159,60604.0,60603.0,0.26772202]
[1724126113320,0.083159,60604.0,60603.0,0.15372202]
[1724126113527,0.640418,60604.0,60603.0,0.11131361]
[1724126113729,0.164922,60603.0,60602.0,0.0002475]
[1724126113929,3.934922,60603.0,60602.0,0.0002475]
[1724126114124,4.03383568,60603.0,60602.0,0.0002475]
[1724126114327,3.934922,60603.0,60602.0,0.0002475]
[1724126114832,3.934922,60603.0,60602.0,0.0012475]
[1724126116939,4.295722,60603.0,60602.0,0.0012475]
[1724126117937,4.213261,60603.0,60602.0,0.0012475]
[1724126118638,4.29561894,60603.0,60602.0,0.0012475]
[1724126118932,4.213261,60603.0,60602.0,0.0012475]
[1724126132636,3.852461,60603.0,60602.0,0.0012475]
[1724126134344,3.966461,60603.0,60602.0,0.0012475]
[1724126143245,3.966461,60603.0,60602.0,0.05063131]
[1724126143954,3.966461,60603.0,60602.0,0.0012475]
[1724126147247,3.966461,60603.0,60602.0,0.0506926]
[1724126149447,4.06537468,60603.0,60602.0,0.0012475]
[1724126149643,3.966461,60603.0,60602.0,0.0012475]
[1724126150057,3.966461,60603.0,60602.0,0.0506926]
[1724126150854,3.966461,60603.0,60602.0,0.0012475]
[1724126152155,3.99831206,60603.0,60602.0,0.0012475]
[1724126152552,3.966461,60603.0,60602.0,0.0012475]
[1724126153357,3.852461,60603.0,60602.0,0.0012475]
[1724126157352,3.852461,60603.0,60602.0,0.02703032]
[1724126158058,0.08248255,60604.0,60602.0,0.96557139]
[1724126158254,0.06594379,60606.0,60603.0,1.08036899]
[1724126158448,0.06594379,60608.0,60605.0,0.557257]
[1724126158664,0.06594379,60609.0,60607.0,0.114]
[1724126158963,3.77,60612.0,60608.0,0.15526484]
[1724126159158,3.77,60612.0,60611.0,0.16335629]
[1724126159359,3.77,60612.0,60611.0,0.13978282]
[1724126160361,3.856449,60612.0,60611.0,0.13978282]
[1724126160564,3.774,60612.0,60611.0,0.114]
[1724126160862,3.784,60612.0,60611.0,0.13977771]
[1724126161454,3.784,60612.0,60611.0,0.189134]
[1724126161660,3.84587226,60612.0,60611.0,0.58302771]
[1724126161859,3.78,60612.0,60611.0,0.60880408]
[1724126162062,3.788,60612.0,60611.0,0.60880408]
[1724126162455,3.85384913,60612.0,60611.0,0.60880408]
[1724126163255,3.85384913,60612.0,60611.0,0.58302771]
[1724126163457,3.85384913,60612.0,60611.0,0.58302636]
[1724126163458,3.788,60612.0,60611.0,0.58302636]
[1724126164466,3.788,60612.0,60611.0,0.22222636]
[1724126164656,3.788,60612.0,60611.0,0.58302636]
[1724126165057,3.788,60612.0,60611.0,0.55725]
[1724126165258,3.788,60612.0,60611.0,0.58302636]
[1724126165766,3.788,60612.0,60611.0,0.59217995]
[1724126166467,3.788,60612.0,60611.0,0.64151072]
[1724126167363,3.788,60612.0,60611.0,0.60658077]
[1724126167576,3.788,60612.0,60611.0,0.44325]
[1724126167757,3.85384913,60612.0,60611.0,0.44325]
[1724126167958,3.96784913,60612.0,60611.0,0.3608]
[1724126169267,3.902,60612.0,60608.0,0.1037]
[1724126170463,3.892,60612.0,60608.0,0.186153]
[1724126170664,3.892,60612.0,60608.0,0.546953]
[1724126170665,3.899,60612.0,60608.0,0.546953]
[1724126171060,3.785,60612.0,60608.0,0.660953]
[1724126171360,3.785,60612.0,60609.0,0.082452]
[1724126171562,3.781,60612.0,60610.0,0.08245]
[1724126171766,3.781,60612.0,60611.0,0.114]
[1724126172372,3.781,60612.0,60611.0,0.13977647]
[1724126172566,3.777,60612.0,60611.0,0.13977647]
[1724126172766,3.782,60612.0,60611.0,0.13977647]
[1724126173271,3.775,60612.0,60611.0,0.13977647]
[1724126173571,3.787,60612.0,60611.0,0.13977647]
[1724126174166,3.778,60612.0,60611.0,0.13977647]
[1724126174360,3.788,60612.0,60611.0,0.13977647]
[1724126175366,3.788,60612.0,60611.0,0.22222547]
[1724126175572,0.018,60612.0,60611.0,0.58302547]
[1724126175775,0.018,60612.0,60611.0,0.60879953]
[1724126175968,0.00922051,60616.0,60611.0,0.52635053]
[1724126176168,3.77,60618.0,60615.0,0.114]
[1724126176366,0.06573754,60619.0,60618.0,0.082439]
[1724126176566,0.06573754,60622.0,60621.0,0.082435]
[1724126176774,0.06573754,60623.0,60622.0,0.082434]
[1724126176966,0.06573754,60623.0,60622.0,0.46900448]
[1724126177166,0.14817054,60623.0,60622.0,0.46900448]
[1724126177468,3.852433,60623.0,60621.0,0.114]
[1724126177869,3.852433,60623.0,60618.0,0.049]
[1724126177870,3.884,60623.0,60618.0,0.049]
[1724126178067,3.884,60623.0,60617.0,0.3608]
[1724126178068,0.06572996,60619.0,60617.0,0.3608]
[1724126178265,3.898,60623.0,60617.0,0.3608]
[1724126178266,3.89884,60623.0,60617.0,0.3608]
[1724126178467,0.114,60620.0,60617.0,0.3608]
[1724126179268,0.082438,60619.0,60618.0,0.001]
[1724126179875,0.14816702,60619.0,60618.0,0.001]
[1724126180178,0.082438,60619.0,60618.0,0.001]
[1724126180379,0.088438,60619.0,60618.0,0.001]
[1724126181072,0.088438,60619.0,60617.0,0.3608]
[1724126181073,0.082439,60618.0,60617.0,0.3608]
[1724126182676,0.087439,60618.0,60617.0,0.3608]
[1724126182973,0.005,60618.0,60617.0,0.46901435]
[1724126183180,0.012,60618.0,60617.0,0.47001435]
[1724126183368,0.012,60618.0,60617.0,0.53586122]
[1724126183982,0.012,60618.0,60617.0,0.47001435]
[1724126184684,3.77,60623.0,60622.0,0.082434]
[1724126184976,3.77,60623.0,60622.0,0.6065281]
[1724126185278,3.77,60623.0,60622.0,0.557234]
[1724126185972,3.78,60623.0,60622.0,0.58400285]
[1724126186166,3.78,60623.0,60622.0,0.64972832]
[1724126186676,3.789,60623.0,60622.0,0.559234]
[1724126186868,3.789,60623.0,60622.0,0.58500271]
[1724126187066,3.789,60623.0,60622.0,0.63830271]
[1724126187368,3.789,60623.0,60622.0,0.70402818]
[1724126187566,3.789,60623.0,60622.0,0.63830271]
[1724126188887,3.789,60623.0,60622.0,0.612534]
[1724126189178,3.789,60623.0,60622.0,0.63830273]
[1724126189567,3.789,60623.0,60622.0,0.70403028]
[1724126190371,3.789,60623.0,60622.0,0.67826155]
[1724126190883,3.789,60623.0,60622.0,0.63830208]
[1724126191779,3.789,60623.0,60622.0,0.612534]
[1724126191979,3.789,60623.0,60622.0,0.63830192]
[1724126192480,3.789,60623.0,60622.0,0.70401055]
[1724126193073,3.789,60623.0,60622.0,0.70401085]
[1724126193478,3.789,60623.0,60622.0,0.67824263]
[1724126193683,3.789,60623.0,60622.0,0.612534]
[1724126194981,3.789,60623.0,60622.0,0.251734]
[1724126195175,3.789,60623.0,60622.0,0.612534]
[1724126195681,0.019,60623.0,60622.0,0.612534]
[1724126196974,3.789,60623.0,60622.0,0.612534]
[1724126198781,0.019,60623.0,60622.0,0.612534]
[1724126201181,0.019,60623.0,60622.0,0.66183169]
[1724126201379,0.019,60623.0,60622.0,0.498534]
[1724126201579,0.019,60623.0,60622.0,0.612534]
[1724126202079,0.019,60623.0,60622.0,0.66183966]
[1724126202282,0.101433,60623.0,60622.0,0.612534]
[1724126203687,0.101433,60623.0,60622.0,0.251734]
[1724126203888,0.101433,60623.0,60622.0,0.612534]
[1724126204380,0.101433,60623.0,60622.0,0.559234]
[1724126204582,0.101433,60623.0,60622.0,0.198434]
[1724126204881,0.101433,60623.0,60622.0,0.559234]
[1724126206380,0.101433,60623.0,60622.0,0.62494263]
[1724126207480,0.101433,60623.0,60622.0,0.559234]
[1724126208376,0.101433,60623.0,60622.0,0.58500343]
[1724126208576,0.297866,60623.0,60622.0,0.06782854]
[1724126208782,0.24959675,60623.0,60622.0,0.002]
[1724126208988,0.183866,60623.0,60622.0,0.05137595]
[1724126209491,0.183866,60623.0,60622.0,0.16537595]
[1724126210383,0.101433,60623.0,60622.0,0.65083396]
[1724126210583,0.101433,60623.0,60622.0,0.58500542]
[1724126211389,0.101433,60623.0,60622.0,0.65086013]
[1724126211784,0.101433,60623.0,60622.0,0.58500542]
[1724126213184,0.101433,60623.0,60622.0,0.65086013]
[1724126213485,0.019,60623.0,60622.0,0.58500532]
[1724126213789,0.019,60623.0,60622.0,0.58500547]
[1724126214587,0.08488185,60623.0,60622.0,0.58500547]
[1724126214789,0.019,60623.0,60622.0,0.58530547]
[1724126215294,0.019,60623.0,60622.0,0.61107465]
[1724126215779,0.019,60623.0,60622.0,1.10595465]
[1724126215981,0.082433,60623.0,60622.0,0.04580602]
[1724126216181,0.443233,60623.0,60622.0,0.02807147]
[1724126216387,3.852433,60623.0,60622.0,0.02807147]
[1724126216578,3.852433,60623.0,60622.0,0.0023]
[1724126216785,3.93476616,60623.0,60622.0,0.0023]
[1724126216984,3.852433,60623.0,60622.0,0.0023]
[1724126218082,3.77,60623.0,60622.0,0.0023]
[1724126218484,3.77,60623.0,60622.0,0.02807225]
[1724126218683,3.77,60623.0,60622.0,0.0023]
[1724126218890,3.77,60623.0,60622.0,0.02807205]
[1724126220112,3.83587356,60623.0,60622.0,0.02807205]
[1724126223594,3.83587356,60623.0,60622.0,0.02807146]
[1724126224196,3.83587356,60623.0,60622.0,0.17639641]
[1724126224495,3.83587356,60623.0,60622.0,0.2021674]
[1724126225901,3.77,60623.0,60622.0,0.2021674]
[1724126226289,3.83587356,60623.0,60622.0,0.5629674]
[1724126226897,3.77,60623.0,60622.0,0.5629674]
[1724126227495,3.77,60623.0,60622.0,0.2021674]
[1724126227796,3.77,60623.0,60622.0,0.5629674]
[1724126228505,3.83587356,60623.0,60622.0,0.57194671]
[1724126229403,3.83587356,60623.0,60622.0,0.5060552]
[1724126230203,0.06587356,60623.0,60622.0,0.6200552]
[1724126230403,0.06587356,60624.0,60623.0,0.082433]
[1724126230596,0.06587356,60624.0,60623.0,0.19984426]
[1724126230796,0.08844788,60625.0,60624.0,0.082431]
[1724126231007,0.08844788,60625.0,60624.0,0.13397289]
[1724126231206,0.08844788,60625.0,60624.0,0.19984226]
[1724126231611,0.08844788,60625.0,60624.0,0.14830037]
[1724126231800,0.08844788,60625.0,60624.0,0.19984131]
[1724126232106,0.02357432,60625.0,60624.0,0.20084131]
[1724126232904,0.02357432,60625.0,60624.0,0.20184131]
[1724126232905,0.02957432,60625.0,60624.0,0.20184131]
[1724126233319,0.09547947,60625.0,60624.0,0.13597194]
[1724126233810,0.02957432,60625.0,60624.0,0.13597194]
[1724126234402,0.02957432,60625.0,60624.0,0.15369721]
[1724126235400,0.02957432,60625.0,60624.0,0.084431]
[1724126235600,0.02957432,60625.0,60624.0,0.15369214]
[1724126235997,0.02957432,60625.0,60624.0,0.12792357]
[1724126236201,0.02957432,60625.0,60624.0,0.15369216]
[1724126237000,0.02957432,60625.0,60624.0,0.12792357]
[1724126237202,0.02957432,60625.0,60624.0,0.15369219]
[1724126238607,0.02957432,60625.0,60624.0,0.51449219]
[1724126239414,0.02957432,60625.0,60624.0,0.46294696]
[1724126239605,0.02957432,60625.0,60624.0,0.51448394]
[1724126240113,0.02957432,60625.0,60624.0,0.62848394]
[1724126243309,0.02957432,60625.0,60624.0,0.559231]
[1724126243608,0.02957432,60625.0,60624.0,0.62848704]
[1724126247211,0.02957432,60625.0,60624.0,0.60271876]
[1724126247410,0.02957432,60625.0,60624.0,0.6284874]
[1724126247816,0.02957432,60625.0,60624.0,0.57695126]
[1724126248116,0.02957432,60625.0,60624.0,0.26768848]
[1724126248419,0.02957432,60625.0,60624.0,0.62848848]
[1724126251408,0.02957432,60625.0,60624.0,0.60271987]
[1724126251714,0.02957432,60625.0,60624.0,0.62848807]
[1724126255120,0.02957432,60625.0,60624.0,0.60271987]
[1724126255418,0.02957432,60625.0,60624.0,0.6284881]
[1724126257917,0.02957432,60625.0,60624.0,0.2676881]
[1724126258122,0.02957432,60625.0,60624.0,0.6284881]
[1724126258826,0.02957432,60625.0,60624.0,0.3165881]
[1724126259008,0.02957432,60625.0,60624.0,0.6773881]
[1724126259611,0.02957432,60625.0,60624.0,0.67739056]
[1724126259825,0.02957432,60625.0,60624.0,0.31659056]
[1724126260322,0.02957432,60625.0,60624.0,0.67739056]
[1724126263417,0.09546476,60625.0,60624.0,0.75969847]
[1724126263622,0.02957432,60625.0,60624.0,0.75969847]
[1724126263927,0.02957432,60625.0,60624.0,0.67739056]
[1724126264123,0.02957432,60625.0,60624.0,0.75982156]
[1724126264623,0.02957432,60625.0,60624.0,0.80105056]
[1724126267126,0.02957432,60625.0,60624.0,0.80105095]
[1724126267722,0.02957432,60625.0,60624.0,0.80135095]
[1724126269324,0.02957432,60625.0,60624.0,0.60491995]
[1724126269529,0.02957432,60625.0,60624.0,0.7011962]
[1724126269830,0.02957432,60625.0,60624.0,0.67769171]
[1724126270223,0.02957432,60625.0,60624.0,0.71892088]
[1724126271021,0.02957432,60625.0,60624.0,0.247631]
[1724126271327,0.02957432,60625.0,60624.0,0.71892133]
[1724126271521,0.02957432,60625.0,60624.0,0.62615526]
[1724126271722,0.02957432,60625.0,60624.0,0.84450491]
[1724126272129,0.02957432,60625.0,60624.0,0.48370491]
[1724126272331,0.02957432,60625.0,60624.0,0.84450491]
[1724126274733,0.02957432,60625.0,60624.0,0.84450495]
[1724126274934,0.02957432,60625.0,60624.0,0.82678069]
[1724126275229,0.02957432,60625.0,60624.0,0.84450481]
[1724126276124,0.02957432,60625.0,60624.0,0.48370481]
[1724126276433,0.02957432,60625.0,60624.0,0.84450481]
[1724126278833,0.09552158,60625.0,60624.0,0.44050736]
[1724126279035,0.09552158,60625.0,60624.0,0.44050715]
[1724126279220,0.09552158,60625.0,60624.0,0.80130715]
[1724126279425,0.09552158,60625.0,60624.0,0.44050715]
[1724126279634,0.09552158,60625.0,60624.0,0.80130715]
[1724126280634,0.09552158,60625.0,60624.0,0.44050715]
[1724126280831,0.09552158,60625.0,60624.0,0.80130715]
[1724126282437,0.09552158,60625.0,60624.0,0.44050715]
[1724126282638,0.09552158,60625.0,60624.0,0.80130715]
[1724126283239,0.02957432,60625.0,60624.0,0.84450462]
[1724126284733,0.02957432,60625.0,60624.0,0.48370462]
[1724126284933,0.02957432,60625.0,60624.0,0.84450462]
[1724126285643,0.02957432,60625.0,60624.0,0.75173898]
[1724126285831,0.02957432,60625.0,60624.0,0.84450444]
[1724126286138,0.02957432,60625.0,60624.0,0.92693544]
[1724126286327,0.02957432,60625.0,60624.0,1.00932493]
[1724126286728,0.02957432,60625.0,60624.0,0.92693544]
[1724126287335,0.02957432,60625.0,60624.0,0.9269352]
[1724126289641,0.09552158,60625.0,60624.0,0.68160413]
[1724126289833,0.09552158,60625.0,60624.0,0.67002029]
[1724126290149,0.02957432,60625.0,60624.0,0.67002029]
[1724126290328,0.02957432,60625.0,60624.0,0.30922029]
[1724126290527,0.02957432,60625.0,60624.0,0.26799119]
[1724126290730,0.02957432,60625.0,60624.0,0.15399119]
[1724126290939,0.02957432,60625.0,60624.0,0.26799119]
[1724126293530,0.02957432,60625.0,60624.0,0.26800296]
[1724126293729,0.30843432,60625.0,60624.0,0.07157196]
[1724126293931,0.082436,60621.0,60617.0,0.04942906]
[1724126294133,0.082441,60617.0,60616.0,0.0002475]
[1724126294339,3.852441,60617.0,60616.0,0.0002475]
[1724126296329,4.213241,60617.0,60616.0,0.0002475]
[1724126296531,4.215241,60617.0,60616.0,0.0002475]
[1724126296737,4.217241,60617.0,60616.0,0.0002475]
[1724126297239,4.331241,60617.0,60616.0,0.0002475]
[1724126298438,4.217241,60617.0,60616.0,0.0002475]
[1724126298640,4.28297845,60617.0,60616.0,0.0002475]
[1724126298943,4.39697845,60617.0,60616.0,0.0002475]
[1724126299547,4.39297845,60617.0,60616.0,0.0002475]
[1724126299853,4.48441945,60617.0,60616.0,0.0022475]
[1724126300347,4.418682,60617.0,60616.0,0.0022475]
[1724126300544,4.48438964,60617.0,60616.0,0.0022475]
[1724126301139,4.418682,60617.0,60616.0,0.0022475]
[1724126301432,4.48437739,60617.0,60616.0,0.0022475]
[1724126302443,4.418682,60617.0,60616.0,0.0022475]
[1724126309448,4.48437739,60617.0,60616.0,0.0022475]
[1724126310748,4.12357739,60617.0,60616.0,0.0022475]
[1724126310948,4.48437739,60617.0,60616.0,0.0022475]
[1724126312859,5.37929739,60617.0,60616.0,0.0022475]
[1724126313057,4.97929739,60617.0,60616.0,0.0022475]
[1724126313849,0.3698,60617.0,60616.0,0.0022475]
[1724126315263,0.3698,60617.0,60616.0,0.0846905]
[1724126316053,0.4838,60617.0,60616.0,0.0846905]
[1724126316356,0.4838,60617.0,60616.0,0.11046647]
[1724126316662,0.54950023,60617.0,60616.0,0.11046647]
[1724126316963,0.18870023,60617.0,60616.0,0.11046647]